bitfinex/quotes_SOLUSD_20240902
["timestamp","ask_amount","ask_price","bid_price","bid_amount"]
[1725267912768,42.51057899,130.2,130.15,7.6832]
[1725267912969,34.82997899,130.2,130.14,7.684]
[1725267913173,50.19257899,130.2,130.14,7.684]
[1725267913561,7.6811,130.19,130.13,33.3204]
[1725267914187,50.19257899,130.2,130.16,7.6826]
[1725267914384,50.19257899,130.2,130.15,7.6833]
[1725267914574,50.19257899,130.2,130.13,33.3201]
[1725267914759,7.6816,130.19,130.14,7.684]
[1725267916657,7.6816,130.19,130.13,26.8946]
[1725267919285,7.6816,130.19,130.14,7.6838]
[1725267919596,39.82105991,130.15,130.09,0.8472365]
[1725267919778,34.82997899,130.14,130.09,0.8472365]
[1725267920279,34.82997899,130.16,130.09,0.8472365]
[1725267920583,7.683,130.16,130.1,19.215]
[1725267920883,34.82997899,130.16,130.1,19.215]
[1725267921656,7.6843,130.14,130.1,26.9013]
[1725267921982,7.6835,130.15,130.1,26.9013]
[1725267922155,7.6851,130.13,130.09,0.8472365]
[1725267922984,34.82997899,130.12,130.09,0.8472365]
[1725267923571,7.6858,130.11,130.09,0.8472365]
[1725267923997,34.82997899,130.14,130.09,0.8472365]
[1725267924169,7.6847,130.13,130.09,0.8472365]
[1725267925271,34.82997899,130.12,130.09,0.8472365]
[1725267925667,7.6851,130.13,130.09,0.8472365]
[1725267926291,7.6854,130.12,130.09,0.8472365]
[1725267926491,7.6858,130.11,130.09,0.8472365]
[1725267930099,34.82997899,130.12,130.09,0.8472365]
[1725267930269,7.6863,130.1,130.09,0.8472365]
[1725267930783,34.82997899,130.12,130.09,0.8472365]
[1725267930987,29.687,130.11,130.09,0.8472365]
[1725267931297,34.82997899,130.12,130.09,0.8472365]
[1725267931500,7.6845,130.14,130.09,8.5340365]
[1725267932197,35.57196601,130.14,130.09,8.5340365]
[1725267932400,7.6851,130.13,130.09,0.8472365]
[1725267932703,27.88746601,130.14,130.09,0.8472365]
[1725267932704,7.6863,130.1,130.09,0.8472365]
[1725267933777,35.57376601,130.1,130.09,0.8472365]
[1725267934592,7.6883,130.07,130.01,19.2286]
[1725267934799,35.57506601,130.08,130.03,7.6904]
[1725267935171,7.6886,130.07,130.01,26.9199]
[1725267935667,35.57506601,130.08,130.03,7.6904]
[1725267935894,27.88746601,130.1,130.03,19.2251]
[1725267936073,27.88746601,130.1,130.07,7.6881]
[1725267936478,27.88746601,130.08,130.02,7.691]
[1725267936717,15.2021,130.14,130.0,51.64106601]
[1725267936900,7.6857,130.12,130.07,7.6878]
[1725267937698,27.89147803,130.13,130.06,19.2209]
[1725267937699,27.89147803,130.13,130.09,7.6869]
[1725267939101,35.57487803,130.15,130.1,7.6863]
[1725267940990,27.89147803,130.15,130.1,19.2148]
[1725267941381,27.89147803,130.15,130.12,7.6851]
[1725267941879,27.89147803,130.15,130.11,7.6857]
[1725267942118,27.89147803,130.15,130.1,19.2148]
[1725267942285,27.89147803,130.13,130.1,19.2148]
[1725267943307,27.89147803,130.11,130.07,26.9077]
[1725267943689,27.89147803,130.11,130.08,7.6874]
[1725267943891,35.57627803,130.13,130.08,7.6874]
[1725267944091,35.57405616,130.13,130.08,7.6874]
[1725267944502,7.6852,130.12,130.07,26.908]
[1725267944698,7.6869,130.1,130.06,22.1576]
[1725267944902,27.88925616,130.11,130.06,7.6887]
[1725267945723,35.57515616,130.11,130.06,7.6887]
[1725267946614,27.88925616,130.11,130.07,7.6879]
[1725267948821,27.88925616,130.09,130.01,19.2279]
[1725267949018,27.88925616,130.07,130.01,19.2279]
[1725267949233,7.689,130.06,130.01,19.2279]
[1725267950603,7.689,130.06,130.01,26.9191]
[1725267950805,7.6876,130.08,130.01,19.2279]
[1725267951294,7.6876,130.08,130.03,7.6905]
[1725267951492,7.6876,130.08,130.02,7.691]
[1725267952329,7.6876,130.08,130.01,19.2279]
[1725267952330,27.88925616,130.07,130.01,19.2279]
[1725267952490,27.88925616,130.05,130.0,1.0]
[1725267952927,35.57905616,130.05,130.0,8.6922]
[1725267953113,27.88925616,130.05,130.0,1.0]
[1725267953304,35.57975616,130.03,130.0,1.0]
[1725267953509,35.2556,130.1,130.0,1.0]
[1725267953510,27.88925616,130.05,130.0,1.0]
[1725267953716,20.0,130.07,130.0,1.0]
[1725267953717,35.57785616,130.07,130.02,7.691]
[1725267954095,27.88925616,130.07,130.02,7.691]
[1725267955230,27.88925616,130.07,130.04,7.6898]
[1725267955407,35.57745616,130.07,130.01,19.2291]
[1725267955719,27.88925616,130.07,130.03,7.6905]
[1725267957803,27.88925616,130.07,130.04,7.6898]
[1725267958026,27.88925616,130.07,130.02,7.6908]
[1725267958210,45.0,130.06,130.02,7.6908]
[1725267958908,45.0,130.06,130.01,19.2291]
[1725267959120,27.88925616,130.07,130.03,19.2253]
[1725267959306,27.88925616,130.07,130.03,26.9152]
[1725267959507,27.88925616,130.07,130.01,7.6915]
[1725267959719,35.57745616,130.07,130.02,7.6909]
[1725267959901,35.57745616,130.07,130.02,7.691]
[1725267960300,27.88925616,130.07,130.03,7.6905]
[1725267960511,15.119,130.09,130.02,19.2267]
[1725267960715,7.6853,130.12,130.07,7.6879]
[1725267961022,35.57505616,130.11,130.05,7.6887]
[1725267961327,35.57505616,130.11,130.01,15.6205]
[1725267961328,35.57505616,130.11,130.06,26.9097]
[1725267961735,35.57505616,130.11,130.03,19.2258]
[1725267961736,27.88925616,130.09,130.03,19.2258]
[1725267961931,27.88925616,130.07,130.03,19.2258]
[1725267962623,45.0,130.06,130.01,23.3121]
[1725267962820,27.88925616,130.05,130.01,7.6916]
[1725267965616,27.88925616,130.07,130.02,7.6911]
[1725267966145,27.88925616,130.07,130.03,7.6905]
[1725267966527,3.33474735,130.12,130.0,20.2306]
[1725267966528,6.6334,130.16,130.08,7.6875]
[1725267966752,42.20545616,130.16,130.1,7.6858]
[1725267967242,42.20545616,130.16,130.11,7.6857]
[1725267968437,27.88925616,130.16,130.11,7.6857]
[1725267968623,27.88925616,130.16,130.12,7.6849]
[1725267969529,27.88925616,130.18,130.14,7.6839]
[1725267970038,21.7675,130.19,130.14,7.6839]
[1725267970039,29.4485,130.19,130.14,7.6839]
[1725267970543,29.4485,130.19,130.15,7.6833]
[1725267970544,15.1341,130.19,130.15,7.6833]
[1725267970729,34.83294255,130.2,130.15,7.6833]
[1725267970929,34.83294255,130.22,130.16,7.6828]
[1725267971644,34.83294255,130.22,130.18,7.6816]
[1725267971857,7.6773,130.26,130.14,6.0195]
[1725267972038,7.6773,130.26,130.2,7.6802]
[1725267972625,57.45604255,130.27,130.21,7.6798]
[1725267972849,7.6763,130.28,130.2,19.1998]
[1725267973226,7.6763,130.28,130.22,7.6792]
[1725267974330,45.0,130.27,130.22,7.6792]
[1725267974742,7.6758,130.28,130.22,7.6792]
[1725267975327,6.3386,130.3,130.24,7.6779]
[1725267975631,6.3386,130.3,130.25,7.6774]
[1725267976030,34.83294255,130.29,130.22,19.197]
[1725267976255,7.6757,130.28,130.22,26.8757]
[1725267976953,7.6757,130.28,130.23,7.6786]
[1725267977251,42.50804255,130.29,130.23,7.6786]
[1725267978162,42.50804255,130.29,130.23,7.6787]
[1725267978163,7.6758,130.28,130.23,7.6787]
[1725267978659,19.1821,130.33,130.21,6.0195]
[1725267978660,39.82105991,130.36,130.3,7.6745]
[1725267978835,74.65400246,130.36,130.29,7.6746]
[1725267979035,34.83294255,130.34,130.29,7.6746]
[1725267979336,74.65400246,130.36,130.3,7.6745]
[1725267980636,34.83294255,130.34,130.28,26.8635]
[1725267982061,42.50524255,130.34,130.28,26.8635]
[1725267982256,45.0,130.33,130.28,26.8635]
[1725267982440,42.50524255,130.34,130.28,26.8635]
[1725267984229,15.2966,130.38,130.31,19.1846]
[1725267984462,15.2966,130.38,130.33,7.6727]
[1725267984835,15.2966,130.38,130.32,7.6734]
[1725267985256,4.16974001,130.41,130.31,19.1846]
[1725267985257,0.8472365,130.41,130.31,19.1846]
[1725267985558,0.8472365,130.41,130.25,38.3868]
[1725267985559,8.5154365,130.41,130.34,19.1803]
[1725267986146,40.66829641,130.41,130.35,7.6714]
[1725267986449,34.83294255,130.4,130.35,7.6714]
[1725267986837,34.83294255,130.4,130.34,26.8525]
[1725267987242,0.8472365,130.41,130.36,7.671]
[1725267987457,20.8472365,130.41,130.36,7.671]
[1725267988359,20.8472365,130.41,130.33,6.5011]
[1725267988360,0.8472365,130.41,130.38,7.6695]
[1725267988564,0.8472365,130.41,130.38,7.6698]
[1725267988750,0.8472365,130.41,130.39,7.6691]
[1725267989144,0.8472365,130.41,130.38,7.6693]
[1725267989457,0.8472365,130.41,130.4,26.8404]
[1725267989764,0.8472365,130.41,130.4,48.5378]
[1725267989952,0.8472365,130.41,130.4,32.8472]
[1725267992571,0.8472365,130.41,130.4,52.8472]
[1725267992956,0.8472365,130.41,130.4,97.8472]
[1725267993955,0.8472365,130.41,130.4,97.97269]
[1725267995877,0.8472365,130.41,130.4,97.8472]
[1725267996083,0.8472365,130.41,130.4,52.8472]
[1725267997654,0.8472365,130.41,130.4,97.97269]
[1725267998768,3.65e-05,130.41,130.4,97.97269]
[1725267998973,3.65e-05,130.41,130.4,98.09818]
[1725268000694,3.65e-05,130.41,130.4,97.97269]
[1725268001838,3.65e-05,130.41,130.4,52.8472]
[1725268002798,3.65e-05,130.41,130.4,26.8404]
[1725268004170,3.65e-05,130.41,130.4,71.8404]
[1725268004880,3.65e-05,130.41,130.4,92.09138]
[1725268005683,16.1795,130.52,130.49,7.663]
[1725268007693,16.1795,130.52,130.5,7.6628]
[1725268008101,16.1795,130.52,130.48,19.1591]
[1725268008311,16.1795,130.52,130.45,57.4926]
[1725268008513,16.1795,130.52,130.48,7.6637]
[1725268010701,16.1795,130.52,130.49,7.6634]
[1725268011581,16.1795,130.52,130.5,7.6626]
[1725268011781,0.8472365,130.54,130.51,7.6621]
[1725268013685,34.83294255,130.53,130.5,7.6628]
[1725268013983,27.72159512,130.53,130.5,7.6628]
[1725268017683,0.8472365,130.54,130.51,7.6622]
[1725268018382,0.8472365,130.54,130.53,7.661]
[1725268018607,0.8472365,130.54,130.51,26.8163]
[1725268018787,0.8472365,130.54,130.51,19.1546]
[1725268019913,0.8472365,130.54,130.53,7.661]
[1725268024334,0.8472365,130.54,130.53,27.661]
[1725268025817,0.8472365,130.54,130.53,72.661]
[1725268027604,0.8472365,130.54,130.53,27.661]
[1725268028612,0.8472365,130.54,130.53,65.9663]
[1725268028811,0.8472365,130.54,130.53,7.661]
[1725268029229,28.56883162,130.54,130.49,7.6634]
[1725268029519,27.72159512,130.52,130.48,19.1594]
[1725268029735,27.72159512,130.52,130.48,26.8233]
[1725268029906,7.6629,130.5,130.45,19.1639]
[1725268030107,27.72159512,130.5,130.47,7.6645]
[1725268030420,27.72159512,130.52,130.48,7.6639]
[1725268030995,27.72159512,130.52,130.45,19.1639]
[1725268030996,35.38359512,130.52,130.46,7.6646]
[1725268031399,27.72159512,130.5,130.45,26.8295]
[1725268031601,27.72159512,130.5,130.45,19.1639]
[1725268032028,27.72159512,130.48,130.45,19.1639]
[1725268032898,27.72159512,130.48,130.43,7.6669]
[1725268033400,27.72159512,130.48,130.44,7.6663]
[1725268034817,27.72159512,130.48,130.43,7.6669]
[1725268035629,27.72159512,130.48,130.44,7.6663]
[1725268036207,35.38559512,130.48,130.43,7.6669]
[1725268036607,27.72159512,130.48,130.42,19.1686]
[1725268036833,27.72159512,130.5,130.42,19.1686]
[1725268037003,27.72159512,130.5,130.44,19.1648]
[1725268038324,27.72159512,130.5,130.46,7.6651]
[1725268039731,7.6634,130.49,130.44,26.8306]
[1725268039915,27.72159512,130.5,130.45,7.6657]
[1725268039916,35.38449512,130.5,130.45,7.6657]
[1725268041937,27.72159512,130.5,130.46,7.6651]
[1725268042236,58.00869512,130.52,130.47,7.6645]
[1725268042540,35.38329512,130.52,130.47,7.6645]
[1725268042838,28.56883162,130.54,130.49,19.1583]
[1725268043044,36.22973162,130.54,130.49,19.1583]
[1725268043838,36.22973162,130.54,130.49,26.8214]
[1725268044845,28.56883162,130.54,130.5,7.6627]
[1725268045940,28.56883162,130.54,130.51,7.6621]
[1725268046436,28.56883162,130.54,130.46,27.72159512]
[1725268046437,0.8472365,130.54,130.46,27.72159512]
[1725268046738,0.8472365,130.54,130.53,7.661]
[1725268047118,0.8472365,130.54,130.52,7.6616]
[1725268047533,0.8472365,130.54,130.51,19.1547]
[1725268047837,27.72159512,130.53,130.47,19.16]
[1725268048045,27.72159512,130.53,130.49,7.6631]
[1725268048344,0.8472365,130.54,130.51,7.6621]
[1725268048849,0.8472365,130.54,130.52,7.661]
[1725268050020,0.8472365,130.54,130.51,19.1542]
[1725268050431,0.8472365,130.54,130.44,38.3308]
[1725268050432,6.513,130.52,130.42,22.7888]
[1725268050640,27.72159512,130.49,130.42,16.3409]
[1725268050828,27.72159512,130.49,130.44,7.666]
[1725268051038,27.72159512,130.49,130.43,7.6668]
[1725268051661,35.38499512,130.49,130.43,7.6668]
[1725268053040,35.38499512,130.49,130.44,7.666]
[1725268053445,27.72159512,130.49,130.44,7.6662]
[1725268054963,27.72159512,130.49,130.45,7.6656]
[1725268055160,80.38389512,130.51,130.46,7.6651]
[1725268055367,80.38389512,130.51,130.44,19.1646]
[1725268055368,27.72159512,130.51,130.47,7.6644]
[1725268055737,27.72159512,130.51,130.48,7.6639]
[1725268055945,27.72159512,130.51,130.48,19.1587]
[1725268056168,27.72159512,130.51,130.48,26.8226]
[1725268057167,27.72159512,130.51,130.48,19.1587]
[1725268058061,6.513,130.52,130.48,26.8224]
[1725268059353,6.513,130.52,130.49,7.6634]
[1725268059539,42.78489512,130.53,130.5,7.6627]
[1725268060452,42.78489512,130.53,130.51,7.6621]
[1725268060762,0.8472365,130.54,130.51,7.6621]
[1725268062568,0.8472365,130.54,130.51,7.6622]
[1725268062758,15.3434,130.57,130.53,6.36]
[1725268062939,15.3434,130.57,130.56,7.6593]
[1725268063136,27.72159512,130.65,130.59,7.6572]
[1725268063445,27.72159512,130.65,130.6,7.6569]
[1725268063778,27.72159512,130.65,130.61,7.6562]
[1725268064254,27.72159512,130.65,130.54,126.20178404]
[1725268064452,27.72159512,130.65,130.6,7.6564]
[1725268064651,27.72159512,130.65,130.61,7.6563]
[1725268065260,27.72159512,130.65,130.58,19.1438]
[1725268065449,27.72159512,130.65,130.6,7.6567]
[1725268065654,27.72159512,130.65,130.61,7.6563]
[1725268066065,82.0647477,130.66,130.61,7.6563]
[1725268066241,45.0,130.64,130.61,7.6563]
[1725268066440,82.0647477,130.66,130.61,7.6563]
[1725268066441,45.0,130.65,130.61,7.6563]
[1725268067064,45.0,130.65,130.59,20.0]
[1725268067448,45.0,130.65,130.62,7.6557]
[1725268067757,45.0,130.65,130.6,26.798]
[1725268067945,45.0,130.65,130.61,7.6563]
[1725268068151,45.0,130.65,130.62,7.6554]
[1725268071369,8.5000365,130.67,130.62,7.6554]
[1725268071370,45.0,130.66,130.62,7.6554]
[1725268074270,8.5000365,130.67,130.63,7.6551]
[1725268074271,0.8472365,130.67,130.63,7.6551]
[1725268074471,20.8472365,130.67,130.63,7.6551]
[1725268074670,0.8472365,130.67,130.63,7.6551]
[1725268075296,0.8472365,130.67,130.64,7.6543]
[1725268076281,45.8472365,130.67,130.64,7.6543]
[1725268078523,0.8472365,130.67,130.59,20.0]
[1725268078778,0.8472365,130.67,130.66,26.787]
[1725268086883,0.8472365,130.67,130.6,6.3966]
[1725268087062,28.48265273,130.67,130.58,38.2893]
[1725268087267,45.0,130.66,130.62,7.6552]
[1725268087475,0.8472365,130.67,130.63,7.6549]
[1725268087690,0.8472365,130.67,130.64,7.6546]
[1725268088586,0.8472365,130.67,130.62,26.7936]
[1725268089201,36.13585273,130.67,130.62,26.7936]
[1725268089372,45.0,130.66,130.62,26.7936]
[1725268089880,28.48265273,130.67,130.63,7.655]
[1725268090893,0.8472365,130.67,130.62,19.1384]
[1725268091089,0.8472365,130.67,130.66,7.6534]
[1725268095472,0.8472365,130.67,130.66,27.6534]
[1725268096486,0.8472365,130.67,130.66,50.5952]
[1725268097290,0.8472365,130.67,130.66,44.2712]
[1725268097599,0.8472365,130.67,130.66,27.6534]
[1725268100610,0.8472365,130.67,130.65,7.654]
[1725268101491,8.5001365,130.67,130.62,7.6556]
[1725268101791,0.8472365,130.67,130.63,19.1371]
[1725268102310,0.8472365,130.67,130.65,7.6535]
[1725268103688,0.8472365,130.67,130.64,7.6545]
[1725268103997,0.8472365,130.67,130.66,7.6534]
[1725268109612,0.8472365,130.67,130.66,27.6534]
[1725268111582,0.8472365,130.67,130.66,65.9206]
[1725268114617,0.8472365,130.67,130.66,45.9206]
[1725268115896,0.8472365,130.67,130.66,65.9206]
[1725268116216,0.8472365,130.67,130.66,27.6534]
[1725268119603,0.8472365,130.67,130.63,7.6546]
[1725268119919,0.8472365,130.67,130.61,44.8181]
[1725268119920,36.13555273,130.67,130.61,7.6563]
[1725268120090,36.13555273,130.67,130.63,7.6551]
[1725268120091,0.8472365,130.67,130.63,7.6551]
[1725268120821,0.8472365,130.67,130.64,7.6543]
[1725268122609,0.8472365,130.67,130.65,7.6538]
[1725268130704,0.8472365,130.67,130.64,7.6545]
[1725268131003,0.8472365,130.67,130.63,26.7914]
[1725268132018,0.8472365,130.67,130.63,19.1368]
[1725268132232,0.8472365,130.67,130.65,7.6539]
[1725268137711,0.8472365,130.67,130.66,7.6534]
[1725268141313,0.8472365,130.67,130.65,19.1343]
[1725268141511,0.8472365,130.67,130.62,19.1392]
[1725268141817,0.8472365,130.67,130.63,27.655]
[1725268142132,16.0535365,130.67,130.63,27.655]
[1725268143122,29.7440365,130.67,130.62,19.1392]
[1725268143427,27.63541623,130.65,130.59,19.1438]
[1725268144416,27.63541623,130.65,130.6,7.6569]
[1725268144417,35.28991623,130.65,130.6,7.6569]
[1725268144632,45.0,130.64,130.56,19.148]
[1725268145024,45.0,130.64,130.55,20.61574847]
[1725268145025,27.63541623,130.61,130.55,20.61574847]
[1725268145336,6.3879,130.62,130.55,20.61574847]
[1725268145337,27.63541623,130.57,130.55,15.2057]
[1725268145633,27.63541623,130.57,130.52,26.8143]
[1725268146150,27.63541623,130.57,130.48,38.3183]
[1725268146151,68.1423,130.56,130.48,19.1587]
[1725268146336,35.29531623,130.55,130.48,19.1587]
[1725268146640,52.6605,130.54,130.48,19.1587]
[1725268146817,52.6605,130.54,130.48,26.8224]
[1725268147347,27.63541623,130.53,130.48,26.8224]
[1725268149244,67.45647614,130.53,130.48,19.1587]
[1725268149545,67.45647614,130.53,130.44,19.1645]
[1725268149546,27.63541623,130.49,130.44,19.1645]
[1725268150336,27.63541623,130.49,130.45,7.6656]
[1725268150552,33.80841623,130.49,130.45,7.6656]
[1725268150717,33.80841623,130.49,130.44,19.1645]
[1725268150718,21.3607,130.49,130.46,7.6651]
[1725268153345,22.2595,130.52,130.47,19.1609]
[1725268153646,22.2595,130.52,130.47,26.8254]
[1725268154324,27.63541623,130.51,130.47,26.8254]
[1725268156230,27.63541623,130.51,130.48,7.6634]
[1725268157239,27.63541623,130.51,130.47,19.1609]
[1725268157548,27.63541623,130.51,130.47,26.8252]
[1725268159322,15.9398,130.52,130.51,7.6622]
[1725268159737,46.33865991,130.58,130.53,7.6608]
[1725268159942,42.70851623,130.57,130.53,7.6608]
[1725268160124,42.70851623,130.57,130.55,7.6596]
[1725268160331,15.0731,130.57,130.55,7.6596]
[1725268162224,15.0731,130.57,130.52,19.1537]
[1725268163446,15.0731,130.57,130.54,7.6604]
[1725268163830,34.15301623,130.58,130.55,7.6596]
[1725268166364,34.15301623,130.58,130.56,7.6592]
[1725268166728,43.46851623,130.6,130.56,7.6592]
[1725268166931,15.8331,130.6,130.58,7.6581]
[1725268169233,15.8331,130.6,130.57,7.6586]
[1725268170453,15.8331,130.6,130.58,7.658]
[1725268172731,27.63541623,130.61,130.58,7.658]
[1725268174039,6.626,130.62,130.58,7.658]
[1725268175356,6.626,130.62,130.59,7.6574]
[1725268176045,27.63541623,130.63,130.61,7.6563]
[1725268176361,33.88361623,130.65,130.62,7.6557]
[1725268176741,33.88361623,130.65,130.64,7.6546]
[1725268176972,27.63541623,130.65,130.64,7.6546]
[1725268177254,28.48265273,130.67,130.64,7.6546]
[1725268178434,28.48265273,130.67,130.65,7.654]
[1725268179032,7.6545,130.65,130.6,7.6565]
[1725268179248,27.63541623,130.63,130.6,7.6565]
[1725268179449,27.63541623,130.63,130.59,19.1435]
[1725268179664,27.63541623,130.63,130.62,7.6557]
[1725268180353,27.63541623,130.65,130.62,7.6557]
[1725268181169,27.63541623,130.65,130.63,7.6551]
[1725268181753,28.48265273,130.67,130.65,7.6538]
[1725268181994,28.48265273,130.67,130.64,26.7906]
[1725268183654,28.48265273,130.67,130.64,19.1361]
[1725268184943,28.48265273,130.67,130.64,26.7907]
[1725268185451,0.8472365,130.67,130.66,7.6534]
[1725268187680,0.8472365,130.67,130.65,7.6539]
[1725268188082,0.8472365,130.67,130.66,7.6534]
[1725268193972,0.8472365,130.67,130.66,27.6534]
[1725268200997,28.48265273,130.67,130.64,19.1361]
[1725268201506,27.63541623,130.65,130.64,19.1361]
[1725268202605,35.28941623,130.65,130.61,19.1406]
[1725268202898,35.28941623,130.65,130.58,19.145]
[1725268202899,27.63541623,130.62,130.58,19.145]
[1725268203276,27.63541623,130.62,130.6,19.141]
[1725268203474,35.29121623,130.62,130.57,7.6586]
[1725268203704,35.29121623,130.62,130.54,16.031]
[1725268203705,45.0,130.61,130.54,16.031]
[1725268203885,27.63541623,130.58,130.54,16.031]
[1725268204085,27.63541623,130.56,130.54,23.6911]
[1725268204681,27.63541623,130.56,130.54,7.6601]
[1725268205399,27.63541623,130.56,130.53,19.1524]
[1725268205400,27.63541623,130.56,130.53,26.8134]
[1725268207028,27.63541623,130.56,130.54,7.6603]
[1725268207984,27.63541623,130.56,130.55,7.6599]
[1725268209202,27.63541623,130.56,130.53,26.8129]
[1725268209411,27.63541623,130.56,130.54,7.6604]
[1725268210397,27.63541623,130.6,130.57,7.6586]
[1725268211189,27.63541623,130.6,130.55,26.8077]
[1725268211190,27.63541623,130.58,130.55,26.8077]
[1725268211386,27.63541623,130.56,130.55,19.1484]
[1725268211687,27.63541623,130.56,130.53,7.6609]
[1725268212111,27.63541623,130.56,130.52,26.8155]
[1725268212112,27.63541623,130.54,130.52,26.8155]
[1725268212311,27.63541623,130.54,130.5,7.6623]
[1725268212613,27.63541623,130.54,130.51,7.6621]
[1725268212799,27.63541623,130.52,130.51,7.6621]
[1725268213415,27.63541623,130.52,130.5,7.6627]
[1725268213709,27.63541623,130.52,130.49,19.1582]
[1725268214015,27.63541623,130.5,130.49,19.1582]
[1725268214520,27.63541623,130.5,130.46,19.1628]
[1725268215292,27.63541623,130.5,130.48,7.6639]
[1725268215522,27.63541623,130.5,130.49,7.6634]
[1725268217823,112.45647614,130.55,130.51,7.6619]
[1725268217824,27.63541623,130.52,130.51,7.6619]
[1725268218504,27.63541623,130.52,130.49,26.8214]
[1725268219006,27.63541623,130.52,130.5,7.6624]
[1725268221625,27.63541623,130.52,130.49,19.1585]
[1725268221626,27.63541623,130.52,130.51,7.6622]
[1725268222321,27.63541623,130.54,130.51,7.6622]
[1725268223035,27.63541623,130.54,130.52,7.6615]
[1725268224025,27.63541623,130.54,130.51,7.6621]
[1725268224708,27.63541623,130.52,130.51,7.6621]
[1725268225308,27.63541623,130.52,130.5,7.6627]
[1725268226807,27.63541623,130.54,130.51,7.6622]
[1725268229712,27.63541623,130.54,130.51,19.1546]
[1725268230127,27.63541623,130.54,130.53,7.661]
[1725268230819,27.63541623,130.54,130.51,19.1546]
[1725268230820,27.63541623,130.54,130.52,7.6615]
[1725268231626,27.63541623,130.54,130.53,7.661]
[1725268231812,15.0218,130.56,130.49,38.3169]
[1725268231813,27.63541623,130.56,130.49,38.3169]
[1725268232030,27.63541623,130.56,130.53,7.6605]
[1725268232319,27.63541623,130.54,130.52,7.6612]
[1725268232516,27.63541623,130.54,130.53,7.661]
[1725268234832,27.63541623,130.54,130.52,7.6616]
[1725268236016,11.08342397,130.54,130.53,7.661]
[1725268238808,11.08342397,130.54,130.52,7.6615]
[1725268241733,11.08342397,130.54,130.48,19.1594]
[1725268241734,7.6617,130.52,130.48,19.1594]
[1725268242056,50.90448388,130.54,130.48,19.1594]
[1725268242057,11.08342397,130.49,130.48,19.1594]
[1725268243416,11.08342397,130.49,130.48,26.8233]
[1725268244029,27.72740435,130.5,130.48,26.8233]
[1725268244443,27.72740435,130.5,130.49,7.6634]
[1725268246539,27.72740435,130.52,130.5,7.6626]
[1725268248140,27.72740435,130.52,130.49,7.6632]
[1725268249333,27.72740435,130.5,130.48,26.8233]
[1725268252144,27.72740435,130.5,130.49,7.6634]
[1725268252441,27.72740435,130.52,130.49,7.6634]
[1725268253637,45.0,130.51,130.48,26.8233]
[1725268253940,27.72740435,130.5,130.48,26.8233]
[1725268254142,27.72740435,130.5,130.48,19.1594]
[1725268254947,67.54846426,130.5,130.46,7.665]
[1725268255238,27.72740435,130.48,130.46,7.665]
[1725268255940,27.72740435,130.48,130.45,19.1636]
[1725268256144,27.72740435,130.46,130.45,19.1636]
[1725268256739,27.72740435,130.46,130.43,7.6668]
[1725268258925,27.72740435,130.46,130.44,7.6661]
[1725268260244,52.6635,130.49,130.45,7.6657]
[1725268260245,27.72740435,130.48,130.45,7.6657]
[1725268260839,27.72740435,130.48,130.46,7.6651]
[1725268261245,27.72740435,130.48,130.47,7.6645]
[1725268262549,27.72740435,130.48,130.46,19.1616]
[1725268262550,27.72740435,130.5,130.48,7.6635]
[1725268264053,27.72740435,130.5,130.49,7.6634]
[1725268265228,15.9746,130.53,130.49,7.6634]
[1725268265229,27.72740435,130.52,130.49,7.6634]
[1725268265429,15.9746,130.53,130.49,7.6634]
[1725268265628,27.72740435,130.52,130.49,7.6634]
[1725268266854,27.72740435,130.52,130.5,7.6628]
[1725268267230,27.72740435,130.52,130.45,15.9398]
[1725268267432,27.72740435,130.54,130.5,19.1563]
[1725268268330,27.72740435,130.54,130.52,7.6611]
[1725268268743,15.8823,130.56,130.53,7.661]
[1725268269062,6.2039,130.57,130.53,7.661]
[1725268269063,27.72740435,130.55,130.53,7.661]
[1725268269236,27.72740435,130.55,130.52,19.1533]
[1725268270155,27.72740435,130.53,130.49,19.1582]
[1725268270363,27.72740435,130.53,130.52,7.6616]
[1725268271234,27.72740435,130.53,130.49,26.8215]
[1725268271545,47.48165991,130.54,130.49,26.8215]